fUST/lending_fUST_20260115
["ID","MTS","AMOUNT","RATE_DAILY","PERIOD"]
[401932866,1768409456462,-838.04,0.00030136,14]
[401932867,1768409456472,-838.04,0.00030136,14]
[401932868,1768409456481,-838.04,0.00030136,14]
[401932869,1768409456491,-838.04,0.00030136,14]
[401932870,1768409456501,-838.04,0.00030136,14]
[401932871,1768409456513,-838.04,0.00030136,14]
[401932872,1768409456523,-838.04,0.00030136,14]
[401932873,1768409456533,-838.26813764,0.00030136,14]
[401932874,1768409456543,-151.0,0.00030136,7]
[401932875,1768409456552,-151.0,0.00030136,7]
[401932876,1768409456561,-151.0,0.00030136,7]
[401932877,1768409456573,-151.0,0.00030136,7]
[401932878,1768409456583,-151.0,0.00030136,7]
[401932879,1768409456593,-256.419817,0.00030136,7]
[401932880,1768409456602,-1039.67,0.00030136,120]
[401932881,1768409456616,-1039.67,0.00030136,120]
[401932882,1768409456633,-1039.67,0.00030136,120]
[401932883,1768409456643,-1039.67,0.00030136,120]
[401932884,1768409456653,-1039.67,0.00030136,120]
[401932885,1768409456663,-1039.67,0.00030136,120]
[401932886,1768409456673,-1039.67,0.00030136,120]
[401932887,1768409456683,-151.0,0.00030136,7]
[401932888,1768409456693,-1039.67,0.00030136,120]
[401932889,1768409456703,-151.0,0.00030136,7]
[401932890,1768409456714,-1039.67,0.00030136,120]
[401932891,1768409456724,-1039.67,0.00030136,120]
[401932892,1768409456734,-218.833933,0.00030136,7]
[401932893,1768409456744,-1039.67,0.00030136,120]
[401932894,1768409456754,-1039.67,0.00030136,120]
[401932895,1768409456765,-1039.67,0.00030136,120]
[401932896,1768409456774,-1039.67,0.00030136,120]
[401932897,1768409456783,-500.0,0.00030136,120]
[401932898,1768409456793,-1039.67,0.00030136,120]
[401932899,1768409456802,-258.78412698,0.00030136,120]
[401932900,1768409456812,-1039.67,0.00030136,120]
[401932901,1768409456822,-1039.67,0.00030136,120]
[401932902,1768409456832,-1039.67,0.00030136,120]
[401932903,1768409456842,-1039.67,0.00030136,120]
[401932904,1768409456852,-1039.67,0.00030136,120]
[401932905,1768409456863,-1039.67,0.00030136,120]
[401932906,1768409456873,-1039.67,0.00030136,120]
[401932907,1768409456882,-1039.67,0.00030136,120]
[401932908,1768409456891,-1039.79886755,0.00030136,120]
[401932909,1768409456900,-500.0,0.00030136,120]
[401932910,1768409456909,-500.0,0.00030136,120]
[401932911,1768409456919,-500.0,0.00030136,120]
[401932912,1768409456928,-500.0,0.00030136,120]
[401932913,1768409456937,-500.0,0.00030136,120]
[401932914,1768409456946,-500.0,0.00030136,120]
[401932915,1768409456960,-500.0,0.00030136,120]
[401932916,1768409456969,-500.0,0.00030136,120]
[401932917,1768409456978,-500.0,0.00030136,120]
[401932918,1768409456987,-500.0,0.00030136,120]
[401932919,1768409456997,-500.0,0.00030136,120]
[401932920,1768409457006,-500.0,0.00030136,120]
[401932921,1768409457015,-500.0,0.00030136,120]
[401932922,1768409457025,-500.0,0.00030136,120]
[401932923,1768409457035,-500.0,0.00030136,120]
[401932924,1768409457044,-500.0,0.00030136,120]
[401932925,1768409457053,-500.0,0.00030136,120]
[401932926,1768409457062,-536.33557862,0.00030136,120]
[401932927,1768409457071,-151.0,0.00030136,7]
[401932928,1768409457081,-151.0,0.00030136,7]
[401932929,1768409457090,-151.0,0.00030136,7]
[401932930,1768409457103,-151.0,0.00030136,7]
[401932931,1768409457113,-500.0,0.00030136,14]
[401932932,1768409457122,-578.09790417,0.00030136,14]
[401932933,1768409457131,-151.0,0.00030136,7]
[401932934,1768409457140,-269.235719,0.00030136,7]
[401932935,1768409457149,-151.0,0.00030136,7]
[401932936,1768409457158,-151.0,0.00030136,7]
[401932937,1768409457168,-151.0,0.00030136,7]
[401932938,1768409457218,-286.14776941,0.00030136,120]
[401932939,1768409457228,-200.0,0.00030136,7]
[401932940,1768409457238,-200.0,0.00030136,7]
[401932941,1768409457247,-500.0,0.00030136,120]
[401932942,1768409457256,-264.74765926,0.00030136,120]
[401932943,1768409457266,-500.0,0.00030136,120]
[401932944,1768409457279,-303.38565511,0.00030136,120]
[401932945,1768409457288,-373.21992044,0.00030136,120]
[401932946,1768409457297,-500.0,0.00030136,120]
[401932947,1768409457305,-500.0,0.00030136,120]
[401932948,1768409457314,-500.0,0.00030136,120]
[401932949,1768409457323,-500.0,0.00030136,120]
[401932950,1768409457332,-500.0,0.00030136,120]
[401932951,1768409457341,-500.0,0.00030136,120]
[401932952,1768409457350,-500.0,0.00030136,120]
[401932953,1768409457359,-246.13109343,0.00030136,120]
[401932954,1768409457367,-524.62484372,0.00030136,60]
[401932955,1768409457376,-500.0,0.00030136,120]
[401932956,1768409457384,-510.48990213,0.00030136,120]
[401932957,1768409457393,-500.0,0.00030136,120]
[401932958,1768409457402,-493.812039,0.00030136,7]
[401932959,1768409457410,-500.0,0.00030136,120]
[401932960,1768409457419,-493.812039,0.00030136,7]
[401932961,1768409457427,-493.812039,0.00030136,7]
[401932962,1768409457436,-493.812039,0.00030136,7]
[401932963,1768409457445,-493.812039,0.00030136,7]
[401932964,1768409457454,-493.812039,0.00030136,7]
[401932965,1768409457464,-493.812039,0.00030136,7]
[401932966,1768409457472,-500.0,0.00030136,120]
[401932967,1768409457481,-500.0,0.00030136,120]
[401932968,1768409457490,-493.812039,0.00030136,7]
[401932969,1768409457499,-500.0,0.00030136,120]
[401932970,1768409457508,-549.5740604,0.00030136,120]
[401932971,1768409457516,-449.23527777,0.00030136,120]
[401932972,1768409457525,-493.812039,0.00030136,7]
[401932973,1768409457534,-493.812039,0.00030136,7]
[401932974,1768409457542,-493.812039,0.00030136,7]
[401932975,1768409457551,-493.812039,0.00030136,7]
[401932976,1768409457559,-493.812039,0.00030136,7]
[401932977,1768409457568,-493.812039,0.00030136,7]
[401932978,1768409457576,-493.812039,0.00030136,7]
[401932979,1768409457586,-493.812045,0.00030136,7]
[401932980,1768409457596,-500.0,0.00030136,120]
[401932981,1768409457605,-500.0,0.00030136,120]
[401932982,1768409457614,-500.0,0.00030136,120]
[401932983,1768409457624,-500.0,0.00030136,120]
[401932984,1768409457635,-500.0,0.00030136,120]
[401932985,1768409457645,-500.0,0.00030136,120]
[401932986,1768409457656,-532.39891321,0.00030136,120]
[401932987,1768409457665,-500.0,0.00030136,120]
[401932988,1768409457674,-500.0,0.00030136,120]
[401932989,1768409457683,-500.0,0.00030136,120]
[401932990,1768409457692,-500.0,0.00030136,120]
[401932991,1768409457702,-500.0,0.00030136,120]
[401932992,1768409457712,-500.0,0.00030136,120]
[401932993,1768409457722,-500.0,0.00030136,120]
[401932994,1768409457733,-500.0,0.00030136,120]
[401932995,1768409457742,-500.0,0.00030136,120]
[401932996,1768409457751,-500.0,0.00030136,120]
[401932997,1768409457760,-220.87315645,0.00030136,120]
[401932998,1768409457812,-579.0,0.00029791,10]
[401932999,1768409457821,-800.0,0.00029968,2]
[401933000,1768409457831,-279.12684355,0.00030136,120]
[401933001,1768409457840,-500.0,0.00030136,120]
[401933002,1768409457856,-500.0,0.00030136,120]
[401933003,1768409457866,-280.62427411,0.00030136,120]
[401933004,1768409457875,-600.12,0.00030136,120]
[401933005,1768409457885,-500.0,0.00030136,120]
[401933006,1768409457893,-151.0,0.00030136,7]
[401933007,1768409457902,-500.0,0.00030136,120]
[401933008,1768409457911,-500.0,0.00030136,120]
[401933009,1768409457920,-151.0,0.00030136,7]
[401933010,1768409457929,-500.0,0.00030136,120]
[401933011,1768409457938,-151.0,0.00030136,7]
[401933012,1768409457948,-500.0,0.00030136,120]
[401933013,1768409457960,-500.0,0.00030136,120]
[401933014,1768409457969,-500.0,0.00030136,120]
[401933015,1768409457978,-500.0,0.00030136,120]
[401933016,1768409457987,-917.85,0.00030136,120]
[401933017,1768409457998,-500.0,0.00030136,120]
[401933018,1768409458007,-917.85,0.00030136,120]
[401933019,1768409458015,-500.0,0.00030136,120]
[401933020,1768409458024,-917.85,0.00030136,120]
[401933021,1768409458034,-500.0,0.00030136,120]
[401933022,1768409458043,-917.85,0.00030136,120]
[401933023,1768409458052,-500.0,0.00030136,120]
[401933024,1768409458061,-917.85,0.00030136,120]
[401933025,1768409458070,-500.0,0.00030136,120]
[401933026,1768409458079,-917.85,0.00030136,120]
[401933027,1768409458088,-500.0,0.00030136,120]
[401933028,1768409458098,-917.85,0.00030136,120]
[401933029,1768409458107,-500.0,0.00030136,120]
[401933030,1768409458116,-917.85,0.00030136,120]
[401933031,1768409458125,-500.0,0.00030136,120]
[401933032,1768409458134,-917.85,0.00030136,120]
[401933033,1768409458143,-500.0,0.00030136,120]
[401933034,1768409458152,-917.85,0.00030136,120]
[401933035,1768409458161,-151.0,0.00030136,7]
[401933036,1768409458170,-500.0,0.00030136,120]
[401933037,1768409458179,-917.85,0.00030136,120]
[401933038,1768409458189,-151.0,0.00030136,7]
[401933039,1768409458198,-500.0,0.00030136,120]
[401933040,1768409458207,-184.93,0.00030136,120]
[401933041,1768409458218,-151.0,0.00030136,7]
[401933042,1768409458227,-917.85,0.00030136,120]
[401933043,1768409458236,-917.85,0.00030136,120]
[401933044,1768409458245,-917.85,0.00030136,120]
[401933045,1768409458255,-917.85,0.00030136,120]
[401933046,1768409458264,-917.85,0.00030136,120]
[401933047,1768409458273,-151.0,0.00030136,7]
[401933048,1768409458283,-727.78665431,0.00030136,120]
[401933049,1768409458300,-190.06334569,0.00030136,120]
[401933050,1768409458310,-151.0,0.00030136,7]
[401933051,1768409458318,-917.85,0.00030136,120]
[401933052,1768409458328,-151.0,0.00030136,7]
[401933053,1768409458338,-917.85,0.00030136,120]
[401933054,1768409458347,-917.85,0.00030136,120]
[401933055,1768409458356,-917.85,0.00030136,120]
[401933056,1768409458365,-917.85,0.00030136,120]
[401933057,1768409458374,-500.0,0.00030136,30]
[401933058,1768409458383,-917.85,0.00030136,120]
[401933059,1768409458393,-613.64429435,0.00030136,30]
[401933060,1768409458402,-917.9607026,0.00030136,120]
[401933061,1768409458411,-500.0,0.00030136,120]
[401933062,1768409458421,-500.0,0.00030136,120]
[401933063,1768409458430,-584.43291556,0.00030136,120]
[401933064,1768409458439,-500.0,0.00030136,120]
[401933065,1768409458449,-500.0,0.00030136,120]
[401933066,1768409458458,-500.0,0.00030136,120]
[401933067,1768409458468,-500.0,0.00030136,120]
[401933068,1768409458477,-500.0,0.00030136,120]
[401933069,1768409458486,-500.0,0.00030136,120]
[401933070,1768409458495,-151.0,0.00030136,7]
[401933071,1768409458505,-500.0,0.00030136,120]
[401933072,1768409458514,-151.0,0.00030136,7]
[401933073,1768409458524,-500.0,0.00030136,120]
[401933074,1768409458533,-221.765393,0.00030136,7]
[401933075,1768409458543,-220.44014095,0.00030136,120]
[401933077,1768410009604,620.03324501,0.00027397,120]
[401933078,1768410014997,1792.88392776,0.00027397,120]
[401933079,1768410105906,1470.0,0.00027397,120]
[401933155,1768410632558,-1200.0,0.00010687,2]
[401933157,1768410632568,-570.0,0.00010687,2]
[401933159,1768410632577,-443.18028461,0.00010687,2]
[401933161,1768410632586,-8019.2045578,0.00010688,2]
[401933163,1768410632595,-300.0,0.00011099,2]
[401933165,1768410632604,-300.0,0.00011099,2]
[401933167,1768410632614,-300.0,0.00011099,2]
[401933169,1768410632623,-300.0,0.00011099,2]
[401933171,1768410632632,-300.0,0.000111,2]
[401933173,1768410632641,-500.0,0.00011102,2]
[401933175,1768410632650,-189.41150187,0.00011102,2]
[401933177,1768410632659,-50000.0,0.00011103,2]
[401933179,1768410632668,-500.0,0.00011104,2]
[401933181,1768410632677,-11579.127755,0.00011105,2]
[401933183,1768410632686,-300.0,0.00011326,2]
[401933185,1768410632695,-300.0,0.00011326,2]
[401933187,1768410632704,-300.0,0.00011326,2]
[401933189,1768410632713,-300.0,0.00011326,2]
[401933191,1768410632723,-300.0,0.00011326,2]
[401933193,1768410632732,-300.0,0.00011326,2]
[401933195,1768410632741,-300.0,0.00011326,2]
[401933197,1768410632750,-300.0,0.00011326,2]
[401933199,1768410632759,-300.0,0.00011326,2]
[401933201,1768410632768,-300.0,0.00011326,2]
[401933203,1768410632777,-300.0,0.00011326,2]
[401933205,1768410632787,-300.0,0.00011326,2]
[401933207,1768410632796,-300.0,0.00011326,2]
[401933209,1768410632805,-300.0,0.00011326,2]
[401933211,1768410632815,-300.0,0.00011326,2]
[401933213,1768410632824,-151.88,0.00011326,2]
[401933215,1768410632833,-500.0,0.00011378,2]
[401933217,1768410632842,-151.89,0.000116,2]
[401933219,1768410632852,-500.0,0.00011652,2]
[401933221,1768410632861,-1680.0,0.00011755,2]
[401933223,1768410632871,-151.0,0.00012,2]
[401933225,1768410632880,-151.0,0.00012099,2]
[401933227,1768410632890,-151.0,0.00012099,2]
[401933229,1768410632899,-151.0,0.00012099,2]
[401933231,1768410632908,-151.0,0.00012099,2]
[401933233,1768410632918,-151.0,0.00012099,2]
[401933235,1768410632927,-151.0,0.00012099,2]
[401933237,1768410632936,-151.0,0.00012099,2]
[401933239,1768410632945,-151.0,0.00012099,2]
[401933262,1768410633152,-151.0,0.00012099,2]
[401933264,1768410633162,-151.0,0.00012099,2]
[401933266,1768410633172,-151.0,0.00012099,2]
[401933268,1768410633181,-151.0,0.00012099,2]
[401933270,1768410633190,-151.0,0.00012099,2]
[401933272,1768410633200,-286.23816441,0.00012099,2]
[401933274,1768410633209,-151.53304833,0.00012099,2]
[401933276,1768410633220,-420.0,0.00012195,2]
[401933278,1768410633229,-420.0,0.00012195,2]
[401933280,1768410633238,-600.0,0.00012238,2]
[401933282,1768410633251,-522.95273584,0.00012687,2]
[401933284,1768410633260,-2351.0,0.00012931,2]
[401933286,1768410633269,-500.0,0.00013273,2]
[401933288,1768410633278,-506.9688385,0.00013273,2]
[401933290,1768410633288,-159.65287791,0.00013273,2]
[401933292,1768410633298,-500.0,0.00013273,2]
[401933294,1768410633307,-500.0,0.00013273,2]
[401933296,1768410633318,-500.0,0.00013273,2]
[401933298,1768410633328,-500.0,0.00013273,2]
[401933300,1768410633339,-500.0,0.00013273,2]
[401933302,1768410633349,-500.0,0.00013273,2]
[401933305,1768410633359,-500.0,0.00013273,2]
[401933307,1768410633368,-643.72416534,0.00013273,2]
[401933308,1768410633378,-500.0,0.00013273,2]
[401933309,1768410633387,-500.0,0.00013273,2]
[401933310,1768410633397,-500.0,0.00013273,2]
[401933311,1768410633406,-500.0,0.00013273,2]
[401933312,1768410633416,-500.0,0.00013273,2]
[401933313,1768410633425,-500.0,0.00013273,2]
[401933314,1768410633435,-500.0,0.00013273,2]
[401933315,1768410633444,-500.0,0.00013273,2]
[401933316,1768410633453,-500.0,0.00013273,2]
[401933317,1768410633463,-500.0,0.00013273,2]
[401933318,1768410633471,-500.0,0.00013273,2]
[401933319,1768410633481,-288.14397623,0.000134,2]
[401933320,1768410633493,-298.85602377,0.000134,2]
[401933321,1768410633503,-243.0,0.000134,2]
[401933322,1768410633512,-299.74737693,0.00013462,2]
[401933323,1768410633534,-420.25262307,0.00013462,2]
[401933325,1768410633545,-151.0,0.000135,2]
[401933327,1768410633555,-300.0,0.00013673,2]
[401933329,1768410633564,-500.0,0.00013698,2]
[401933331,1768410633573,-39.47246082,0.00013698,2]
[401933334,1768410633585,-530.60753918,0.00013698,2]
[401933336,1768410633595,-69.39246082,0.00013698,2]
[401933375,1768410637992,-500.68753918,0.00013698,2]
[401933376,1768410638002,-570.08,0.00013698,2]
[401933377,1768410638012,-570.08,0.00013698,2]
[401933378,1768410638022,-570.08,0.00013698,2]
[401933379,1768410638032,-570.08,0.00013698,2]
[401933380,1768410638042,-570.08,0.00013698,2]
[401933381,1768410638052,-570.08,0.00013698,2]
[401933382,1768410638067,-570.08,0.00013698,2]
[401933383,1768410638084,-570.08,0.00013698,2]
[401933384,1768410638093,-570.08,0.00013698,2]
[401933385,1768410638103,-570.08,0.00013698,2]
[401933386,1768410638114,-570.08,0.00013698,2]
[401933387,1768410638123,-570.08,0.00013698,2]
[401933388,1768410638133,-570.08,0.00013698,2]
[401933389,1768410638143,-570.08,0.00013698,2]
[401933390,1768410638153,-570.08,0.00013698,2]
[401933391,1768410638162,-570.08,0.00013698,2]
[401933392,1768410638171,-570.08,0.00013698,2]
[401933393,1768410638181,-570.08,0.00013698,2]
[401933394,1768410638191,-570.08,0.00013698,2]
[401933395,1768410638200,-570.08,0.00013698,2]
[401933396,1768410638209,-570.08,0.00013698,2]
[401933397,1768410638219,-570.14825894,0.00013698,2]
[401933398,1768410638228,-1321.2655534,0.00013699,2]
[401933399,1768410638238,-500.0,0.00013699,2]
[401933400,1768410638250,-500.0,0.00013699,2]
[401933401,1768410638260,-500.0,0.00013699,2]
[401933402,1768410638270,-422.94168027,0.00013699,2]
[401933403,1768410638279,-500.0,0.00013699,2]
[401933404,1768410638290,-500.0,0.00013699,2]
[401933405,1768410638300,-500.0,0.00013699,2]
[401933406,1768410638309,-500.0,0.00013699,2]
[401933407,1768410638319,-500.0,0.00013699,2]
[401933408,1768410638330,-500.0,0.00013699,2]
[401933409,1768410638339,-500.0,0.00013699,2]
[401933410,1768410638349,-500.0,0.00013699,2]
[401933411,1768410638358,-500.0,0.00013699,2]
[401933412,1768410638367,-500.0,0.00013699,2]
[401933413,1768410638377,-500.0,0.00013699,2]
[401933414,1768410638386,-500.0,0.00013699,2]
[401933415,1768410638396,-295.89237958,0.00013699,2]
[401933416,1768410638406,-4773.19507783,0.00013721,2]
[401933417,1768410638417,-574.08865466,0.00013821,2]
[401933418,1768410638427,-1000.0,0.00013821,2]
[401933419,1768410638437,-1000.0,0.00013821,2]
[401933420,1768410638446,-1000.0,0.00013821,2]
[401933421,1768410638455,-1000.0,0.00013821,2]
[401933422,1768410638464,-1000.0,0.00013821,2]
[401933423,1768410638474,-1000.0,0.00013821,2]
[401933424,1768410638483,-1000.0,0.00013821,2]
[401933425,1768410638493,-505.48440654,0.00013821,2]
[401933426,1768410638503,-1000.0,0.00013821,2]
[401933427,1768410638512,-1000.0,0.00013821,2]
[401933428,1768410638521,-1015.29551893,0.00013821,2]
[401933429,1768410638530,-1000.0,0.00013821,2]
[401933430,1768410638540,-1000.0,0.00013821,2]
[401933431,1768410638549,-1000.0,0.00013821,2]
[401933432,1768410638559,-1000.0,0.00013821,2]
[401933433,1768410638568,-169.06993919,0.00013821,2]
[401933434,1768410638577,-1000.0,0.00013821,2]
[401933435,1768410638587,-1000.0,0.00013821,2]
[401933436,1768410638596,-250.0,0.00013959,2]
[401933437,1768410638605,-600.0,0.00014221,2]
[401933438,1768410638615,-3292.0,0.00014224,2]
[401933439,1768410638624,-1000.0,0.00014247,2]
[401933440,1768410638634,-192.93732994,0.00014247,2]
[401933441,1768410638644,-1000.0,0.00014247,2]
[401933442,1768410638653,-1000.0,0.00014247,2]
[401933443,1768410638663,-1000.0,0.00014247,2]
[401933444,1768410638672,-249.49335299,0.00014247,2]
[401933445,1768410638682,-235.30085754,0.00014247,2]
[401933446,1768410638691,-155.35549971,0.00014247,2]
[401933447,1768410638700,-1000.0,0.00014247,2]
[401933448,1768410638710,-1000.0,0.00014247,2]
[401933449,1768410638719,-323.8476233,0.00014247,2]
[401933450,1768410638728,-1000.0,0.00014247,2]
[401933451,1768410638738,-1000.0,0.00014247,2]
[401933452,1768410638747,-1000.0,0.00014247,2]
[401933453,1768410638757,-1000.0,0.00014247,2]
[401933454,1768410638766,-1000.0,0.00014247,2]
[401933455,1768410638775,-453.04414217,0.00014368,2]
[401933456,1768410638784,-1500.0,0.00014368,2]
[401933457,1768410638794,-1500.0,0.00014368,2]
[401933458,1768410638803,-1500.0,0.00014368,2]
[401933459,1768410638813,-1500.0,0.00014368,2]
[401933460,1768410638822,-894.2425796,0.00014368,2]
[401933461,1768410638839,-288.40211667,0.00014368,2]
[401933462,1768410638848,-241.96881838,0.00014368,2]
[401933463,1768410638861,-1258.03118162,0.00014368,2]
[401933464,1768410638870,-1500.0,0.00014368,2]
[401933465,1768410638880,-1500.0,0.00014368,2]
[401933466,1768410638889,-1500.0,0.00014368,2]
[401933467,1768410638899,-1500.0,0.00014368,2]
[401933468,1768410638908,-1500.0,0.00014368,2]
[401933469,1768410638917,-1500.0,0.00014368,2]
[401933470,1768410638927,-1500.0,0.00014368,2]
[401933471,1768410638936,-1500.0,0.00014368,2]
[401933472,1768410638945,-5000.0,0.0001451,2]
[401933473,1768410638955,-602.72518707,0.00014687,2]
[401933474,1768410638964,-823.0,0.00014724,2]
[401933475,1768410638974,-900.0,0.00014768,2]
[401933476,1768410638984,-559.26251357,0.00014795,2]
[401933477,1768410638993,-1044.67516775,0.00014795,2]
[401933478,1768410639003,-1211.66599686,0.00014795,2]
[401933479,1768410639012,-373.84265648,0.00014795,2]
[401933480,1768410639021,-1500.0,0.00014795,2]
[401933481,1768410639030,-1500.0,0.00014795,2]
[401933482,1768410639040,-500.0,0.00014795,2]
[401933483,1768410639049,-1500.0,0.00014795,2]
[401933484,1768410639060,-1500.0,0.00014795,2]
[401933485,1768410639069,-864.0,0.00014808,2]
[401933486,1768410639078,-2000.0,0.00014916,2]
[401933487,1768410639087,-2000.0,0.00014916,2]
[401933488,1768410639098,-1056.99110983,0.00014916,2]
[401933489,1768410639107,-198.73989319,0.00014916,2]
[401933490,1768410639117,-1171.14126243,0.00014916,2]
[401933491,1768410639127,-2000.0,0.00014916,2]
[401933492,1768410639137,-2000.0,0.00014916,2]
[401933493,1768410639146,-2000.0,0.00014916,2]
[401933494,1768410639156,-2000.0,0.00014916,2]
[401933495,1768410639165,-2000.0,0.00014916,2]
[401933496,1768410639174,-2000.0,0.00014916,2]
[401933497,1768410639183,-685.37019291,0.00014916,2]
[401933498,1768410639193,-2000.0,0.00014916,2]
[401933499,1768410639202,-100000.0,0.0001499,2]
[401933500,1768410639213,-151.0,0.00015,2]
[401933501,1768410639223,-800.0,0.00015068,2]
[401933502,1768410639232,-1200.0,0.00015316,2]
[401933503,1768410639241,-2000.0,0.00015342,2]
[401933504,1768410639251,-2000.0,0.00015342,2]
[401933505,1768410639262,-2000.0,0.00015342,2]
[401933506,1768410639271,-2000.0,0.00015342,2]
[401933507,1768410639280,-2500.0,0.00015464,2]
[401933508,1768410639290,-2500.0,0.00015464,2]
[401933509,1768410639299,-2500.0,0.00015464,2]
[401933510,1768410639308,-2500.0,0.00015464,2]
[401933511,1768410639318,-916.13825137,0.00015464,2]
[401933512,1768410639328,-2500.0,0.00015464,2]
[401933513,1768410639338,-2500.0,0.00015464,2]
[401933514,1768410639347,-2500.0,0.00015464,2]
[401933515,1768410639356,-2500.0,0.00015464,2]
[401933516,1768410639365,-308.0,0.00015646,2]
[401933517,1768410639374,-1500.0,0.00015864,2]
[401933518,1768410639383,-2500.0,0.0001589,2]
[401933519,1768410639392,-2500.0,0.0001589,2]
[401933520,1768410639402,-2319.68437302,0.0001589,2]
[401933521,1768410639411,-2500.0,0.0001589,2]
[401933522,1768410639420,-3000.0,0.00016012,2]
[401933523,1768410639429,-3000.0,0.00016012,2]
[401933524,1768410639439,-3000.0,0.00016012,2]
[401933525,1768410639448,-3000.0,0.00016012,2]
[401933526,1768410639457,-3000.0,0.00016012,2]
[401933527,1768410639467,-3000.0,0.00016012,2]
[401933528,1768410639476,-3000.0,0.00016012,2]
[401933529,1768410639485,-1600.0,0.00016164,2]
[401933530,1768410639495,-1152.0,0.00016178,2]
[401933531,1768410639504,-1000.0,0.00016289,2]
[401933532,1768410639513,-1800.0,0.00016412,2]
[401933533,1768410639523,-500.0,0.00016438,2]
[401933534,1768410639532,-449.05735745,0.00016438,2]
[401933535,1768410639542,-500.0,0.00016438,2]
[401933536,1768410639551,-500.0,0.00016438,2]
[401933537,1768410639560,-500.0,0.00016438,2]
[401933538,1768410639569,-164.26686219,0.00016438,2]
[401933539,1768410639578,-200.0,0.00016438,2]
[401933540,1768410639588,-3000.0,0.00016438,2]
[401933541,1768410639597,-3000.0,0.00016438,2]
[401933542,1768410639606,-3000.0,0.00016438,2]
[401933543,1768410639616,-260.29560408,0.00016438,2]
[401933544,1768410639626,-184.29,0.0001644,2]
[401933545,1768410639636,-184.29,0.0001644,2]
[401933546,1768410639646,-184.29,0.0001644,2]
[401933547,1768410639657,-184.29,0.0001644,2]
[401933548,1768410639667,-4773.19507779,0.00016491,2]
[401933549,1768410639677,-151.0,0.000165,2]
[401933550,1768410639687,-2917.48910491,0.0001656,2]
[401933552,1768410639697,-1892.75982988,0.0001656,2]
[401933553,1768410639707,-3500.0,0.0001656,2]
[401933554,1768410639719,-3500.0,0.0001656,2]
[401933555,1768410639729,-3500.0,0.0001656,2]
[401933557,1768410639737,-3500.0,0.0001656,2]
[401933559,1768410639746,-3500.0,0.0001656,2]
[401933561,1768410639755,-682.49763829,0.00016687,2]
[401933562,1768410639765,-2100.0,0.0001696,2]
[401933563,1768410639774,-270.0,0.00016986,2]
[401933565,1768410639783,-3500.0,0.00016986,2]
[401933566,1768410639792,-587.94374426,0.00016986,2]
[401933567,1768410639801,-3500.0,0.00016986,2]
[401933568,1768410639811,-4000.0,0.00017108,2]
[401933569,1768410639819,-4000.0,0.00017108,2]
[401933570,1768410639828,-4000.0,0.00017108,2]
[401933571,1768410639838,-2199.34641428,0.00017108,2]
[401933572,1768410639846,-4000.0,0.00017108,2]
[401933573,1768410639855,-2400.0,0.0001726,2]
[401933574,1768410639864,-5000.0,0.00017412,2]
[401933575,1768410639873,-2400.0,0.00017508,2]
[401933576,1768410639882,-174.48080933,0.00017534,2]
[401933577,1768410639892,-4000.0,0.00017534,2]
[401933578,1768410639901,-400.0,0.00017534,2]